[Event "FIDE WY-U16 Olympiad 2022"]
[Site "Nakhchivan"]
[Date "2022.10.06"]
[Round "5.4"]
[White "Diaz Bartolo, Elizabeth Schahrazad"]
[Black "Maklakova, Naomi"]
[Result "1/2-1/2"]
[ECO "C28"]
[WhiteElo "1666"]
[BlackElo "1625"]
[Annotator "NA RC COMBH"]
[PlyCount "127"]
[EventDate "2022.10.02"]
[EventType "team-tourn"]
[EventCountry "AZE"]
[SourceTitle "playchess.com"]
[Source "ChessBase"]
[SourceQuality "1"]
[WhiteTeam "Mexico"]
[BlackTeam "Latvia"]
[WhiteTeamCountry "MEX"]
[BlackTeamCountry "LAT"]
[TimeControl "40/5400+30:1800+30"]

1. e4 {[%emt 0:00:14]} e5 {[%emt 0:00:09]} 2. Nc3 {[%emt 0:00:08]} Nc6 {[%emt 0:00:16]} 3. Bc4 {[%emt 0:00:13]} Nf6 {[%emt 0:01:07]} 4. d3 {[%emt 0:00:07]} Bb4 {[%emt 0:04:13]} 5. Nge2 {[%emt 0:00:22]} O-O {[%emt 0:04:17]} 6. O-O {[%emt 0:01:45]} Na5 {[%emt 0:03:14]} 7. Bb3 {[%emt 0:01:15]} Nxb3 {[%emt 0:12:56]} 8. axb3 {[%emt 0:00:08]} c6 {[%emt 0:10:57]} 9. Kh1 {[%emt 0:05:28]} d5 {[%emt 0:08:53]} 10. Bg5 {[%emt 0:04:10]} Be7 {[%emt 0:02:24]} 11. exd5 {[%emt 0:09:53]} Nxd5 {[%emt 0:12:24]} 12. Bxe7 {[%emt 0:01:18]} Qxe7 {[%emt 0:02:21]} 13. Qd2 {[%emt 0:00:36]} Bg4 {[%emt 0:02:24]} 14. f4 {[%emt 0:03:51]} exf4 {[%emt 0:03:20]} 15. Nxf4 {[%emt 0:00:25]} Qe3 {[%emt 0:01:11]} 16. Qxe3 {[%emt 0:02:25]} Nxe3 {[%emt 0:00:03]} 17. Rf2 {[%emt 0:00:13]} g5 {[%emt 0:00:37]} 18. h3 {[%emt 0:04:03]} Bd7 {[%emt 0:00:57]} 19. Nh5 {[%emt 0:01:14]} f5 {[%emt 0:00:10]} 20. Re1 {[%emt 0:01:58]} f4 {[%emt 0:01:42]} 21. Ne4 {[%emt 0:00:31]} Nd5 {[%emt 0:13:33]} 22. c4 {[%emt 0:07:44]} Be8 {[%emt 0:00:06]} 23. cxd5 {[%emt 0:03:45]} Bxh5 {[%emt 0:00:06]} 24. Nxg5 {[%emt 0:03:12]} cxd5 {[%emt 0:01:06]} 25. Re7 {[%emt 0:02:53]} Bg6 {[%emt 0:01:30]} 26. d4 {[%emt 0:02:46]} b6 {[%emt 0:02:38]} 27. Ne6 {[%emt 0:06:21]} Rfe8 {[%emt 0:01:18]} 28. Rxe8+ {[%emt 0:02:10]} Rxe8 {[%emt 0:00:02]} 29. Nxf4 {[%emt 0:01:51]} Re1+ {[%emt 0:00:05]} 30. Kh2 {[%emt 0:00:19]} Be4 {[%emt 0:00:02]} 31. Ne6 {[%emt 0:01:06]} h6 {[%emt 0:00:27]} 32. Rf8+ {[%emt 0:04:39]} Kh7 {[%emt 0:00:01]} 33. Rf7+ {[%emt 0:00:20]} Kg6 {[%emt 0:00:06]} 34. Rxa7 {[%emt 0:01:12]} Kf6 {[%emt 0:00:15]} 35. Nf4 {[%emt 0:01:22]} Kg5 {[%emt 0:00:03]} 36. Kg3 {[%emt 0:07:53]} Re3+ {[%emt 0:00:41]} 37. Kf2 {[%emt 0:00:10]} Rxb3 {[%emt 0:00:14]} 38. g3 {[%emt 0:06:00]} Rxb2+ {[%emt 0:02:17]} 39. Ke1 {[%emt 0:00:12]} Rb3 {[%emt 0:02:29]} 40. Ne2 {[%emt 0:05:48]} b5 {[%emt 0:01:25]} 41. Rc7 {[%emt 0:32:19]} b4 {[%emt 0:30:48]} 42. Rb7 {[%emt 0:01:38]} Rb1+ {[%emt 0:01:46]} 43. Kd2 {[%emt 0:02:02]} Rb2+ {[%emt 0:00:31]} 44. Ke3 {[%emt 0:02:13]} Rb3+ {[%emt 0:03:20]} 45. Kd2 {[%emt 0:00:56]} Rd3+ {[%emt 0:00:11]} 46. Ke1 {[%emt 0:00:52]} b3 {[%emt 0:00:57]} 47. Rb6 {[%emt 0:03:09]} h5 {[%emt 0:00:00]} 48. h4+ {[%emt 0:00:00]} Kg4 {[%emt 0:00:00]} 49. Rb8 {[%emt 0:00:00]} Kf3 {[%emt 0:00:00]} 50. Rf8+ Ke3 {[%emt 0:00:00]} 51. Rb8 {[%emt 0:00:00]} Bf3 {[%emt 0:01:32]} 52. Re8+ {[%emt 0:00:00]} Be4 {[%emt 0:00:02]} 53. Rb8 {[%emt 0:00:00]} b2 {[%emt 0:02:15]} 54. Rxb2 {[%emt 0:00:00]} Ra3 {[%emt 0:00:04]} 55. Nc1 {[%emt 0:00:00]} Kxd4 {[%emt 0:00:06]} 56. Kd2 {[%emt 0:00:00]} Ke5 {[%emt 0:00:06]} 57. Rb3 {[%emt 0:00:00]} Rxb3 {[%emt 0:02:52]} 58. Nxb3 {[%emt 0:00:00]} d4 {[%emt 0:00:04]} 59. Ke2 {[%emt 0:00:00]} Bf5 {[%emt 0:01:06]} 60. Nd2 {[%emt 0:00:00]} Bc2 {[%emt 0:00:53]} 61. Nf3+ {[%emt 0:00:00]} Ke4 {[%emt 0:00:10]} 62. Nd2+ {[%emt 0:00:00]} Kf5 {[%emt 0:00:09]} 63. Nf3 {[%emt 0:00:00]} d3+ {[%emt 0:00:12]} 64. Ke3 {[%emt 0:00:00]} 1/2-1/2

[Event "FIDE WY-U16 Olympiad 2022"]
[Site "Nakhchivan"]
[Date "2022.10.06"]
[Round "5.5"]
[White "Daneshvar, Bardiya"]
[Black "Pranav Vijay"]
[Result "1/2-1/2"]
[ECO "E19"]
[WhiteElo "2515"]
[BlackElo "2265"]
[Annotator "TA"]
[PlyCount "103"]
[EventDate "2022.10.02"]
[EventType "team-tourn"]
[EventCountry "AZE"]
[SourceTitle "playchess.com"]
[Source "ChessBase"]
[SourceQuality "1"]
[WhiteTeam "Iran"]
[BlackTeam "India"]
[WhiteTeamCountry "IRI"]
[BlackTeamCountry "IND"]
[TimeControl "40/5400+30:1800+30"]

{[%evp 17,103,31,29,27,26,9,12,0,42,37,28,26,30,50,77,66,77,51,68,56,61,54,62,57,47,30,47,23,29,26,68,65,81,68,76,62,61,58,71,59,77,30,41,18,223,116,118,130,129,99,152,144,147,152,158,154,159,161,222,243,229,218,207,224,343,335,361,289,292,292,327,319,344,206,208,172,177,129,120,0,0,0,0,0,0,0,0,0]} 1. Nf3 {[%emt 0:00:03]} Nf6 {[%emt 0:00:14]} 2. c4 {[%emt 0:00:07]} e6 {[%emt 0:00:17]} 3. g3 {[%emt 0:00:03]} a6 {[%emt 0:01:39]} 4. Bg2 {[%emt 0:00:18]} b5 {[%emt 0:00:08]} 5. b3 {[%emt 0:00:13]} Bb7 {[%emt 0:00:58]} 6. O-O {[%emt 0:00:25]} Be7 {[%emt 0:00:40]} 7. Nc3 {[%emt 0:00:50]} b4 {[%emt 0:02:47]} 8. Na4 {[%emt 0:01:27]} O-O {[%emt 0:01:41]} 9. d4 {[%emt 0:00:46]} d6 {[%emt 0:00:39]} 10. Ne1 {[%emt 0:02:14] A13: English Opening: 1...e6.} Bxg2 {[%emt 0:08:36]} 11. Nxg2 {[%emt 0:00:33]} Nbd7 {[%emt 0:00:45] [#]} 12. Qd3 $146 {[%emt 0:01:35]} ({Predecessor:} 12. f3 Nb6 13. Nxb6 cxb6 14. e4 b5 15. a3 bxa3 16. Bxa3 Qc7 17. Ne3 Rfb8 18. Qd3 Qb7 19. Rfd1 Bf8 20. Ra2 a5 21. Rda1 a4 22. Bb2 axb3 {½-½ (22) Schlosser,P (2501)-Speelman,J (2493) Dresden 2018}) 12... e5 {[%emt 0:08:54]} 13. e4 {[%emt 0:17:23]} exd4 {[%emt 0:22:05]} 14. Qxd4 {[%emt 0:00:12]} Re8 {[%emt 0:05:30]} 15. Bb2 {[%emt 0:06:06]} Bf8 {[%emt 0:00:28]} 16. f3 {[%emt 0:00:38]} c6 {[%emt 0:02:13]} 17. Nf4 {[%emt 0:05:49]} Qa5 {[%emt 0:04:47]} 18. Kg2 {[%emt 0:04:51]} Rad8 {[%emt 0:02:04][%cal Od6d5]} 19. Rfe1 {[%emt 0:06:28]} Ne5 {[%emt 0:02:42]} 20. Rad1 {[%emt 0:12:19]} Nfd7 {[%emt 0:03:02]} 21. Rc1 {[%emt 0:06:21]} Ng6 {[%emt 0:04:35]} 22. Nxg6 {[%emt 0:02:49]} (22. Nd3 {with more complications.} Qh5 23. Nf2 Qg5 24. Qe3) 22... hxg6 {[%emt 0:01:10]} 23. Qd2 {[%emt 0:00:56]} Rb8 {[%emt 0:09:17]} 24. h4 {[%emt 0:04:39]} Ne5 {[%emt 0:03:39]} 25. Qc2 {[%emt 0:02:41]} Nd7 {[%emt 0:01:46]} 26. Rcd1 {[%emt 0:03:56]} Re6 {[%emt 0:02:08]} 27. Qd2 {[%emt 0:05:19]} Qc7 {[%emt 0:03:33]} 28. Rh1 {[%emt 0:01:52]} f6 {[%emt 0:03:57]} 29. Qf4 {[%emt 0:01:01]} (29. h5 $16 g5 30. g4) 29... Qa5 $11 {[%emt 0:01:26]} 30. g4 {[%emt 0:03:54]} f5 $2 {[%emt 0:02:34] [#]} (30... Ne5 $11 {and Black stays safe.}) 31. gxf5 {[%emt 0:00:43]} (31. h5 $18 {And now hxg6 would win.} fxe4 32. hxg6 (32. fxe4 Rbe8 $11) 32... Rxg6 33. Qxe4 (33. Qh2 $2 Qf5 $19)) 31... gxf5 $16 {[%emt 0:00:01]} 32. exf5 {[%emt 0:00:19]} (32. Qxf5 $6 Qxf5 33. exf5 Re2+ 34. Kh3 Kf7 $11) 32... Re7 {[%emt 0:01:42]} 33. f6 {[%emt 0:06:21]} Rf7 {[%emt 0:00:24]} (33... Re2+ $2 34. Kf1 Rxb2 35. f7+ (35. Nxb2 Nxf6 36. Rg1 Nd7 $18) 35... Kh7 36. Nxb2 $18) (33... Nxf6 $142 34. Bxf6 gxf6) 34. Qg5 $36 {[%emt 0:00:19][%mdl 2048] White is in control.} Qxg5+ {[%emt 0:00:33]} 35. hxg5 {[%emt 0:00:05][%cal Bh4g5,Bg5g6][%mdl 32] Threatens to win with g6.} gxf6 {[%emt 0:00:00] [#]} 36. f4 $1 {[%emt 0:00:15] White has more active pieces.} Re8 {[%emt 0:01:00]} 37. Kf3 {[%emt 0:00:32]} Bg7 {[%emt 0:00:30]} (37... Re6 {might work better.} 38. gxf6 Nxf6) 38. g6 $18 {[%emt 0:00:44]} (38. Rxd6 fxg5 39. f5 Bxb2 40. Nxb2 Ne5+ 41. Kg2 Rxf5 $15) 38... Rfe7 {[%emt 0:00:05]} 39. Rxd6 {[%emt 0:00:41]} Nf8 {[%emt 0:00:57]} 40. Bxf6 {[%emt 0:01:07]} Re3+ {[%emt 0:00:32]} (40... Bxf6 $142 41. Rxf6 Ne6) 41. Kg4 {[%emt 0:30:06]} Nxg6 {[%emt 0:30:31]} 42. Bg5 {[%emt 0:02:38]} ({Weaker is} 42. Rxc6 Bxf6 43. Rxf6 Kg7 $18) (42. Bxg7 Kxg7 43. Nc5 (43. Rxc6 R8e4 $14) 43... Re2 $18) 42... Nf8 {[%emt 0:00:00]} 43. Rxc6 {[%emt 0:00:00]} Re2 {[%emt 0:00:00]} 44. Rxa6 {[%emt 0:00:00]} Ne6 {[%emt 0:00:00]} 45. Rh3 {[%emt 0:00:00]} (45. Nb6 $142) 45... Rxa2 {[%emt 0:00:00]} 46. Kf5 {[%emt 0:00:00]} Re2 {[%emt 0:00:00]} 47. Rb6 {[%emt 0:00:00]} (47. Rg3 $18 {Hoping for Bf6.} Rf8+ 48. Kg4) 47... Bd4 {[%emt 0:00:00]} 48. Rd6 {[%emt 0:00:00]} (48. Rxb4 $16 {Black must now prevent Rg3.} Rg2 49. Rb7) 48... Ng7+ $1 $11 {[%emt 0:00:00] The position is equal.} 49. Kg4 {[%emt 0:00:00]} Rg2+ {[%emt 0:00:00]} 50. Kf3 {[%emt 0:00:00]} ({Not} 50. Rg3 $2 Rxg3+ 51. Kxg3 Nf5+ 52. Kg4 Nxd6 $19) 50... Rf2+ {[%emt 0:00:00]} 51. Kg4 {[%emt 0:00:00]} Rg2+ {[%emt 0:00:00]} 52. Kf3 {[%emt 0:00:00] Weighted Error Value: White=0.23 (precise) /Black=0.20 (precise)} ({But not} 52. Rg3 $2 Rxg3+ 53. Kxg3 Nf5+ 54. Kg4 Nxd6 $19) 1/2-1/2

[Event "FIDE WY-U16 Olympiad 2022"]
[Site "Nakhchivan"]
[Date "2022.10.06"]
[Round "5.5"]
[White "Teh, Rui Gen"]
[Black "Orozbaev, Eldiar"]
[Result "0-1"]
[ECO "B23"]
[WhiteElo "1824"]
[BlackElo "2344"]
[Annotator "TA"]
[PlyCount "61"]
[EventDate "2022.10.02"]
[EventType "team-tourn"]
[EventCountry "AZE"]
[SourceTitle "playchess.com"]
[Source "ChessBase"]
[SourceQuality "1"]
[WhiteTeam "Malaysia"]
[BlackTeam "Kyrgyzstan"]
[WhiteTeamCountry "MAS"]
[BlackTeamCountry "KGZ"]
[TimeControl "40/5400+30:1800+30"]

{[%evp 16,61,26,0,0,0,7,-46,-31,-175,-33,-29,0,0,14,0,0,-33,-34,-66,-56,-68,-59,-62,-38,-124,-53,-180,-184,-178,-190,-455,-427,-445,-464,-461,-57,-59,-76,-64,-82,-210,0,-906,-843,-1256,-1257,-29999]} 1. e4 {[%emt 0:00:03]} c5 {[%emt 0:00:08]} 2. Nc3 {[%emt 0:00:10]} e6 {[%emt 0:01:22]} 3. Nge2 {[%emt 0:00:41]} Nc6 {[%emt 0:02:21]} 4. g3 {[%emt 0:00:24]} d5 {[%emt 0:00:39]} 5. exd5 {[%emt 0:03:45]} exd5 {[%emt 0:00:03]} 6. d4 {[%emt 0:00:40]} Nf6 {[%emt 0:01:17]} 7. Bg2 {[%emt 0:07:42]} cxd4 {[%emt 0:00:16]} 8. Nxd4 {[%emt 0:01:03]} Bg4 {[%emt 0:00:07]} 9. Qd3 {[%emt 0:02:34]} Bc5 {[%emt 0:07:38] B24: Closed Sicilian: 3 g3 sidelines.} 10. Be3 {[%emt 0:12:14]} Qb6 {[%emt 0:03:05][%csl LRb2,LRd4][%cal Rc5d4] [#]} 11. Nce2 $146 {[%emt 0:04:45]} (11. Nxc6 $11 bxc6 12. O-O Bxe3 13. fxe3 (13. Qxe3+ Be6 $11)) ({Predecessor:} 11. Nxc6 Bxe3 12. O-O bxc6 13. fxe3 O-O 14. Qd4 Qxd4 15. exd4 Rab8 16. b3 Rfe8 17. Rae1 {1-0 (25) Indjic,A (2604)-Martin Carmona,G (2346) Chess.com INT 2022}) 11... Qxb2 {[%emt 0:12:20] Black is slightly better.} 12. Nxc6 {[%emt 0:25:55]} bxc6 {[%emt 0:03:47]} (12... Qxa1+ $19 13. Kd2 Qxa2 14. Bxc5 bxc6) 13. O-O $15 {[%emt 0:07:56]} Be7 {[%emt 0:16:55]} (13... Qa3 $5 {[%cal Ra3d3]} 14. Nd4 Bd7 $15) 14. Nd4 {[%emt 0:08:36]} Qb7 {[%emt 0:00:39]} 15. Rab1 {[%emt 0:05:50][%mdl 1024] White has compensation.} Qc8 {[%emt 0:00:48]} 16. Rfe1 {[%emt 0:06:52] Threatens to win with Bf4.} ({Of course not} 16. f3 Bd7 17. Bf4 O-O $17) 16... O-O $1 {[%emt 0:00:42]} 17. Qd2 {[%emt 0:02:49][%cal Oc2c4]} Re8 {[%emt 0:03:00]} 18. c4 {[%emt 0:00:16]} Bh3 {[%emt 0:09:33][%cal Bg4h3,Bh3f5,Bf5e4][%mdl 32]} 19. Bh1 {[%emt 0:02:30]} Ne4 {[%emt 0:01:08]} 20. Qc2 {[%emt 0:02:45]} (20. Qd3 $15) 20... Bf6 {[%emt 0:01:08]} (20... c5 $17 21. Nb3 Bf5) 21. Rec1 {[%emt 0:01:20]} (21. Rbc1 $15) 21... c5 $19 {[%emt 0:02:57]} 22. Nb5 {[%emt 0:00:53] [#]} Bf5 $1 {[%emt 0:00:04]} 23. Qa4 {[%emt 0:00:29]} (23. Qd1) 23... Qd7 {[%emt 0:08:33] Hoping for ...d4.} ({Wrong is} 23... a6 $2 24. Bxe4 axb5 25. Bxf5 Qxf5 26. Qxb5 $19) 24. Qa6 {[%emt 0:00:18]} d4 {[%emt 0:00:53]} 25. Bf4 {[%emt 0:00:08]} g5 $2 {[%emt 0:02:41]} (25... d3 $19 26. Bg2 d2) 26. Bxe4 $15 {[%emt 0:00:27][%mdl 64] [#] Remove Defender} Bxe4 {[%emt 0:00:35]} 27. Qxf6 {[%emt 0:00:31]} gxf4 $40 {[%emt 0:00:04][%mdl 128] Black wants a kill.} 28. Rb2 {[%emt 0:00:37]} (28. Nd6 $17 {was worth a try.} Bxb1 29. Nxe8 Rxe8 30. Rxb1) 28... f3 $2 {[%emt 0:01:11] The board is on fire.} ({Better is} 28... fxg3 $19 29. fxg3 Bg6) 29. Qg5+ $2 {[%emt 0:01:21][%mdl 8192]} (29. Nd6 $11) 29... Bg6 $19 {[%emt 0:00:05] ( -> ...Qh3)} 30. Qf4 {[%emt 0:00:52]} Qh3 {[%emt 0:00:09][%csl Gf3][%cal Rh3g2]} 31. Qd2 {Weighted Error Value: White=0.89/Black=0.53} 0-1

[Event "FIDE WY-U16 Olympiad 2022"]
[Site "Nakhchivan"]
[Date "2022.10.06"]
[Round "5.6"]
[White "Pranesh M"]
[Black "Mahdavi, Reza"]
[Result "1-0"]
[ECO "B48"]
[WhiteElo "2442"]
[BlackElo "2324"]
[Annotator "TA"]
[PlyCount "49"]
[EventDate "2022.10.02"]
[EventType "team-tourn"]
[EventCountry "AZE"]
[SourceTitle "playchess.com"]
[Source "ChessBase"]
[SourceQuality "1"]
[WhiteTeam "India"]
[BlackTeam "Iran"]
[WhiteTeamCountry "IND"]
[BlackTeamCountry "IRI"]
[TimeControl "40/5400+30:1800+30"]

{[%evp 17,49,22,28,22,21,22,86,69,65,63,89,82,88,80,213,114,257,246,407,414,601,596,947,941,1771,1731,1408,1088,5385,3230,2357,77,1019,991]} 1. e4 {[%emt 0:00:06]} c5 {[%emt 0:00:07]} 2. Nf3 {[%emt 0:00:10]} e6 {[%emt 0:00:05]} 3. d4 {[%emt 0:00:16]} cxd4 {[%emt 0:00:06]} 4. Nxd4 {[%emt 0:00:04]} Nc6 {[%emt 0:00:07]} 5. Nc3 {[%emt 0:00:27]} Qc7 {[%emt 0:00:07]} 6. Be3 {[%emt 0:00:33]} a6 {[%emt 0:00:07]} 7. a3 {[%emt 0:00:14]} Nf6 {[%emt 0:00:06]} 8. f4 {[%emt 0:00:22]} d6 {[%emt 0:00:07]} 9. Qf3 {[%emt 0:00:13]} Be7 {[%emt 0:05:07]} 10. O-O-O {[%emt 0:03:02] B82: Sicilian Scheveningen: 6 f4.} O-O {[%emt 0:12:51] 10...0-0 scores better than 10...Bd7.} 11. Nxc6 {[%emt 0:00:14]} Qxc6 {[%emt 0:04:37]} (11... bxc6 $11 12. Be2 Bb7) 12. g4 $16 {[%emt 0:02:11][%cal Bg2g4,Bg4g5][%mdl 32] White is better.} b5 {[%emt 0:07:30]} 13. g5 {[%emt 0:00:34]} Nd7 {[%emt 0:00:09] [#]} 14. f5 $146 {[%emt 0:00:28][%cal Bf4f5,Bf5f6][%mdl 32] White is more active.} ({Predecessor:} 14. Bd3 Nc5 15. Kb1 Nxd3 16. cxd3 b4 17. axb4 Rb8 18. b5 axb5 19. Rc1 Qa6 20. Na2 {0-1 (37) Idani,P (2568)-Cori,J (2671) chess24.com INT 2020}) 14... Ne5 {[%emt 0:00:35]} 15. Qg3 $36 {[%emt 0:05:29][%mdl 2048] White is really pushing.} Re8 {[%emt 0:01:01]} (15... exf5 $16 16. Bg2 f4 17. Bxf4 Re8) 16. h4 {[%emt 0:04:34]} ({White must play} 16. f6 $1 $18 {[%cal Rf6e7]}) 16... Bf8 {[%emt 0:02:21]} (16... exf5 $16 17. exf5 Qxh1) 17. f6 $18 {[%emt 0:04:38] aiming for h5.} Rb8 $2 {[%emt 0:13:23]} (17... Qc7 18. Be2 Bb7) 18. h5 {[%emt 0:00:37][%cal Og5g6] And now g6! would win.} Rb7 {[%emt 0:00:38]} (18... b4 $142) 19. g6 {[%emt 0:06:39]} fxg6 {[%emt 0:00:12]} 20. hxg6 {[%emt 0:00:17]} Nxg6 {[%emt 0:00:08] [#]} 21. Rxh7 $3 {[%emt 0:00:46][%mdl 512]} Ne5 {[%emt 0:12:52]} 22. Qh4 {[%emt 0:00:45] White threatens Rh8+ and mate.} gxf6 {[%emt 0:02:34]} 23. Rh8+ {[%emt 0:00:22]} Kf7 {[%emt 0:00:07] [#]} 24. Qh7+ {[%emt 0:00:27]} (24. Bxb5 $142 $1 {[%mdl 512]} Ke7 (24... Bg7 25. Rh7) 25. Bxc6 Nxc6 26. Rh7+ Kd8 27. Qxf6+ Rbe7 28. e5) 24... Bg7 {[%emt 0:00:06] [#]} 25. Bh6 $1 {[%emt 0:00:13] White took control after the opening.  Weighted Error Value: White=0.34/Black=0.92} 1-0

[Event "FIDE WY-U16 Olympiad 2022"]
[Site "Nakhchivan"]
[Date "2022.10.06"]
[Round "5.6"]
[White "Zhakshylykov, Erzhan"]
[Black "Navaratnam, Ishaan Quan Tze"]
[Result "1-0"]
[ECO "E81"]
[WhiteElo "2260"]
[BlackElo "1862"]
[Annotator "TA"]
[PlyCount "74"]
[EventDate "2022.10.02"]
[EventType "team-tourn"]
[EventCountry "AZE"]
[SourceTitle "playchess.com"]
[Source "ChessBase"]
[SourceQuality "1"]
[WhiteTeam "Kyrgyzstan"]
[BlackTeam "Malaysia"]
[WhiteTeamCountry "KGZ"]
[BlackTeamCountry "MAS"]
[TimeControl "40/5400+30:1800+30"]

{[%evp 17,74,30,45,35,41,41,39,36,48,64,108,103,111,84,112,94,102,108,108,86,114,107,156,162,152,72,288,285,320,234,255,113,216,212,192,157,265,345,428,426,401,300,296,325,320,278,1445,84,543,535,514,514,704,413,368,-68,0,-72,885]} 1. d4 {[%emt 0:00:08]} Nf6 {[%emt 0:00:18]} 2. c4 {[%emt 0:00:12]} g6 {[%emt 0:00:40]} 3. Nc3 {[%emt 0:00:17]} Bg7 {[%emt 0:00:06]} 4. e4 {[%emt 0:00:08]} d6 {[%emt 0:00:07]} 5. f3 {[%emt 0:00:20]} O-O {[%emt 0:00:26]} 6. Be3 {[%emt 0:00:05]} Nbd7 {[%emt 0:00:43]} 7. Nge2 {[%emt 0:07:41]} c5 {[%emt 0:03:13]} 8. d5 {[%emt 0:02:08]} Ne5 {[%emt 0:05:54]} 9. Ng3 {[%emt 0:07:49]} h5 {[%emt 0:07:12]} 10. Be2 {[%emt 0:01:53] E81: King's Indian: Sämisch: 6th move deviations (including 6 Be3 c6).} e6 {[%emt 0:05:46]} 11. O-O {[%emt 0:05:18]} exd5 {[%emt 0:05:46]} 12. cxd5 {[%emt 0:01:01] White is slightly better.} Bd7 {[%emt 0:01:46]} 13. h3 {[%emt 0:17:07] [#]} Be8 $146 {[%emt 0:16:10]} ({Predecessor:} 13... h4 14. Nh1 b5 15. Nxb5 Bxb5 16. Bxb5 Rb8 17. Qe2 Qb6 18. a4 Rfc8 19. b4 g5 20. bxc5 dxc5 21. Bxg5 {1-0 (46) Sakline Mostafa,S (2089)-Mohammad Shafiqul,I (1720) Dhaka 2022}) 14. f4 {[%emt 0:04:04]} Ned7 {[%emt 0:00:49]} 15. Bf3 {[%emt 0:11:04]} Nh7 {[%emt 0:07:19]} 16. a4 {[%emt 0:14:13]} Nb6 {[%emt 0:06:39]} 17. Bf2 {[%emt 0:01:35]} Bd7 {[%emt 0:07:29]} 18. Re1 {[%emt 0:02:30]} Qf6 {[%emt 0:04:47]} 19. Nge2 {[%emt 0:07:16]} g5 {[%emt 0:05:56]} (19... Nc4 $142) 20. e5 $1 $16 {[%emt 0:07:49]} (20. Bxh5 gxf4 21. Qd3 a5 $11) 20... Qh6 {[%emt 0:06:09]} 21. a5 {[%emt 0:00:28]} (21. e6 $142 $1 {a5 is the strong threat.} fxe6 22. dxe6 Bxe6 23. Qxd6) 21... Nc8 $2 {[%emt 0:05:56]} (21... g4 $16 {was necessary.}) 22. e6 $18 {[%emt 0:01:01]} fxe6 {[%emt 0:00:53]} 23. dxe6 {[%emt 0:00:03]} Bc6 {[%emt 0:01:35]} 24. Bd5 {[%emt 0:04:46]} (24. Nd5 $18 {is more deadly.}) 24... Ne7 {[%emt 0:01:23]} (24... Kh8 $16) 25. Bxc6 {[%emt 0:00:10]} Nxc6 {[%emt 0:00:10]} 26. Qxd6 {[%emt 0:00:58] Hoping for a6.} gxf4 {[%emt 0:00:05]} (26... Rad8 $16 27. Qxc5 Qxe6 28. fxg5 Ne5) 27. a6 $1 {[%emt 0:01:02][%cal Ba5a6,Ba6b7][%mdl 32]} (27. Qxc5 $6 f3 $18) 27... Be5 {[%emt 0:00:40]} 28. Qxc5 {[%emt 0:00:48]} f3 {[%emt 0:00:41]} 29. axb7 {[%emt 0:00:36] Chess con chili. Active counter play!} Qg6 {[%emt 0:01:33][%csl Gf3][%cal Rg6g2]} 30. g3 {[%emt 0:00:30]} (30. Ng3 Bxg3 31. Bxg3 Qxg3 $15) 30... Rae8 {[%emt 0:02:53][%cal Oh7g5] Strongly threatening ...Ng5!} 31. Qxc6 {[%emt 0:02:10]} Qf5 $2 {[%emt 0:02:23]} (31... Ng5) 32. Kh2 $2 {[%emt 0:00:30]} (32. Nf4 $18 {and White stays clearly on top.} Ng5 33. Rxe5 $1 {[%mdl 512]} Qxe5 34. Ng6 Qxe6 35. Qxe6+ Nxe6 36. Nxf8 Nxf8 37. Bxa7) 32... fxe2 $4 {[%emt 0:00:19][%mdl 8192]} (32... Ng5 $16 {is tougher.} 33. Ng1 Qc2) 33. Rxe2 {[%emt 0:00:13]} Ng5 {[%emt 0:00:14]} 34. Qg2 {[%emt 0:00:13] And now Bc5 would win.} h4 {[%emt 0:00:42]} 35. e7 {[%emt 0:01:05]} Rxe7 {[%emt 0:00:36] aiming for ...Rh7.} 36. Rf1 $2 {[%emt 0:00:45] [#]} (36. Kh1 $18 Nxh3 37. Bc5 (37. Bxa7 hxg3 38. Qd5+ Kh7 $14) (37. gxh4+ $2 Rg7 $19) 37... hxg3 38. Bxe7) 36... Rh7 {[%emt 0:00:26]} ({Black should play} 36... Rxb7 $1 $15 37. Ne4 (37. Kh1 Bxg3 38. Rd1 Qxh3+ 39. Qxh3 Nxh3 $17) 37... Nxe4 38. Qxe4 hxg3+ 39. Kg2 Qxe4+ 40. Rxe4 gxf2 41. Rxe5 Rxb2 42. Rg5+ Kh7) 37. Qd5+ {[%emt 0:00:22]} (37. Rxe5 $11 {keeps the balance.} Qxe5 38. Kh1 (38. Re1 $2 hxg3+ 39. Kh1 gxf2 $19) 38... hxg3 39. Bd4 $1 Rxf1+ 40. Qxf1) 37... Nf7 $4 {[%emt 0:00:00][%mdl 8192] Weighted Error Value: White=0.82/Black=0.49} (37... Rhf7 $17 38. Qg2 {[#]} Rxb7 $1) 1-0